bitfinex/quotes_BTCUSD_20220405
["timestamp","ask_amount","ask_price","bid_price","bid_amount"]
[1649159619529,0.07735022,46614.0,46613.0,0.72912905]
[1649159621635,0.07735022,46614.0,46613.0,0.427158]
[1649159622986,0.07735022,46614.0,46613.0,0.73598414]
[1649159623190,0.07735022,46614.0,46613.0,0.377158]
[1649159624294,0.07735022,46614.0,46613.0,0.427158]
[1649159625135,0.07735022,46614.0,46613.0,0.422158]
[1649159626390,0.07735022,46614.0,46613.0,0.42205325]
[1649159627045,0.07735022,46614.0,46613.0,0.72205325]
[1649159628275,0.07735022,46614.0,46613.0,0.42205325]
[1649159628478,0.07735022,46614.0,46613.0,0.72205325]
[1649159628676,0.07735022,46614.0,46613.0,0.55205325]
[1649159628776,0.07735022,46614.0,46613.0,0.72205325]
[1649159628875,0.07735022,46614.0,46613.0,0.42205325]
[1649159629376,0.07735022,46614.0,46613.0,0.72205325]
[1649159630332,0.07735022,46614.0,46613.0,0.42205325]
[1649159630581,0.07735022,46614.0,46613.0,0.25205325]
[1649159630677,0.07735022,46614.0,46613.0,0.42205325]
[1649159630880,0.07735022,46614.0,46613.0,0.21689525]
[1649159630979,0.07735022,46614.0,46613.0,0.42205325]
[1649159631380,0.07735022,46614.0,46613.0,0.68650372]
[1649159631480,0.07735022,46614.0,46613.0,0.48134572]
[1649159631580,0.07735022,46614.0,46613.0,0.68650372]
[1649159631679,0.07735022,46614.0,46613.0,0.48134572]
[1649159632027,0.07735022,46614.0,46613.0,0.21689525]
[1649159632230,0.07735022,46614.0,46613.0,0.72205325]
[1649159632684,0.07735022,46614.0,46613.0,0.65205325]
[1649159632785,0.07735022,46614.0,46613.0,1.56517842]
[1649159632894,0.07735022,46614.0,46613.0,1.34488249]
[1649159632984,0.02219539,46620.0,46614.0,2.35]
[1649159633133,0.02219539,46620.0,46619.0,0.2645531]
[1649159633235,0.02219539,46620.0,46619.0,0.23521846]
[1649159633333,0.02219539,46620.0,46619.0,1.2456125]
[1649159633485,0.02219539,46620.0,46619.0,1.57916389]
[1649159633632,0.02219539,46620.0,46619.0,1.98000878]
[1649159634236,0.02219539,46620.0,46619.0,1.4010793]
[1649159634333,0.02219539,46620.0,46619.0,1.7510793]
[1649159634536,0.02219539,46620.0,46619.0,1.8510793]
[1649159634636,0.02219539,46620.0,46619.0,2.14588535]
[1649159634735,0.02219539,46620.0,46619.0,2.22628791]
[1649159634839,0.02219539,46620.0,46619.0,2.88088791]
[1649159634936,0.02219539,46620.0,46619.0,2.92368791]
[1649159635041,0.17686799,46636.0,46622.0,0.053597]
[1649159635145,0.17686799,46636.0,46630.0,0.17629244]
[1649159635289,0.49759799,46636.0,46635.0,0.17]
[1649159635489,0.49707178,46636.0,46635.0,0.13821922]
[1649159635762,0.49759804,46636.0,46635.0,0.13821922]
[1649159635860,0.32125626,46636.0,46635.0,0.13821922]
[1649159636258,0.49751919,46636.0,46635.0,0.13821922]
[1649159636557,0.49699293,46636.0,46635.0,0.13821922]
[1649159636660,0.49699293,46636.0,46635.0,0.05]
[1649159636759,0.49699293,46636.0,46632.0,0.08009723]
[1649159636859,0.32073,46635.0,46632.0,0.08009723]
[1649159636960,0.17626293,46636.0,46632.0,0.08009723]
[1649159637060,0.32073,46635.0,46632.0,0.08009723]
[1649159637160,0.17626293,46636.0,46632.0,0.08009723]
[1649159637259,0.32073,46635.0,46632.0,0.08009723]
[1649159637361,0.17626293,46636.0,46632.0,0.08009723]
[1649159637562,0.32073,46635.0,46632.0,0.08009723]
[1649159637967,0.17626293,46636.0,46632.0,0.08009723]
[1649159638065,0.17678919,46636.0,46632.0,0.08009723]
[1649159638267,0.32073,46634.0,46632.0,0.08009723]
[1649159638368,0.32073,46635.0,46632.0,0.08009723]
[1649159638466,0.00052626,46636.0,46632.0,0.08009723]
[1649159638666,0.32073,46635.0,46632.0,0.08009723]
[1649159638766,0.00052626,46636.0,46632.0,0.08009723]
[1649159638972,0.27611649,46637.0,46632.0,0.08009723]
[1649159639069,0.32073,46636.0,46632.0,0.08009723]
[1649159639270,0.32125626,46636.0,46632.0,0.08009723]
[1649159639370,0.32073,46635.0,46632.0,0.08009723]
[1649159639494,0.00052626,46636.0,46632.0,0.08009723]
[1649159639585,0.32073,46635.0,46632.0,0.08009723]
[1649159639687,0.00052626,46636.0,46632.0,0.08009723]
[1649159639784,0.32073,46635.0,46632.0,0.08009723]
[1649159639984,0.00052626,46636.0,46632.0,0.08009723]
[1649159640189,0.27611649,46637.0,46632.0,0.08009723]
[1649159640389,0.32073,46635.0,46632.0,0.08009723]
[1649159640791,0.00052626,46636.0,46632.0,0.08009723]
[1649159640892,0.32073,46635.0,46632.0,0.08009723]
[1649159640992,0.00052626,46636.0,46632.0,0.08009723]
[1649159641193,0.00052626,46636.0,46632.0,0.03009723]
[1649159641391,0.32073,46638.0,46632.0,0.03009723]
[1649159641592,0.32073,46636.0,46632.0,0.03009723]
[1649159641693,0.32125626,46636.0,46632.0,0.03009723]
[1649159642397,0.26209623,46635.0,46632.0,0.03009723]
[1649159642495,0.32073,46634.0,46632.0,0.03009723]
[1649159643941,0.26209623,46635.0,46632.0,0.03009723]
[1649159644138,0.32073,46634.0,46632.0,0.03009723]
[1649159644593,0.26209623,46635.0,46632.0,0.03009723]
[1649159644691,0.32073,46634.0,46632.0,0.03009723]
[1649159645895,0.26209623,46635.0,46632.0,0.03009723]
[1649159645994,0.00052626,46636.0,46632.0,0.03009723]
[1649159646143,0.32073,46635.0,46632.0,0.03009723]
[1649159647206,0.28187205,46634.0,46632.0,0.03009723]
[1649159647455,0.32073,46633.0,46632.0,0.03009723]
[1649159648058,0.28187205,46634.0,46632.0,0.03009723]
[1649159648161,0.00052626,46636.0,46632.0,0.03009723]
[1649159648258,0.00052626,46636.0,46633.0,0.053606]
[1649159648460,0.32073,46635.0,46633.0,0.053606]
[1649159648559,0.27235855,46639.0,46633.0,0.053606]
[1649159648658,0.32073,46638.0,46633.0,0.053606]
[1649159648861,0.00052625,46637.0,46633.0,0.053606]
[1649159649611,0.32073,46636.0,46633.0,0.053606]
[1649159649912,0.27235855,46639.0,46635.0,0.01084766]
[1649159650012,0.00052625,46637.0,46634.0,0.160809]
[1649159650112,0.00052625,46637.0,46634.0,0.260809]
[1649159650944,0.32073,46638.0,46634.0,0.260809]
[1649159651144,0.32073,46638.0,46634.0,0.210809]
[1649159651243,0.32125625,46638.0,46634.0,0.210809]
[1649159652146,0.32073,46638.0,46634.0,0.210809]
[1649159652297,0.01072,46639.0,46634.0,0.210809]
[1649159652298,0.01072,46639.0,46634.0,0.260809]
[1649159652396,0.00065359,46640.0,46634.0,0.31440305]
[1649159652498,0.00052624,46638.0,46635.0,0.407189]
[1649159652599,0.00052624,46638.0,46637.0,0.01084766]
[1649159653398,0.00065359,46640.0,46637.0,0.01084766]
[1649159653497,0.00065359,46640.0,46637.0,0.053592]
[1649159653698,0.00117982,46640.0,46637.0,0.053592]
[1649159654596,0.00065359,46640.0,46637.0,0.053592]
[1649159656196,0.32073,46639.0,46637.0,0.053592]
[1649159656301,0.00065359,46640.0,46638.0,0.09905913]
[1649159656401,0.32073,46639.0,46638.0,0.09905913]
[1649159656502,0.32073,46639.0,46638.0,0.08822867]
[1649159656601,0.32073,46639.0,46638.0,0.13822867]
[1649159656698,0.32073,46639.0,46638.0,0.18822867]
[1649159657105,0.59296864,46639.0,46638.0,0.18822867]
[1649159658278,0.59296864,46639.0,46638.0,0.13822867]
[1649159658886,0.32073,46639.0,46638.0,0.13822867]
[1649159658982,0.32073,46639.0,46638.0,0.05]
[1649159659086,0.31434522,46639.0,46638.0,0.08821827]
[1649159659184,0.320721,46639.0,46638.0,0.08821827]
[1649159659283,0.320721,46639.0,46638.0,0.13821827]
[1649159660085,0.320721,46639.0,46638.0,0.05]
[1649159660188,0.320721,46639.0,46638.0,0.06084568]
[1649159660286,0.320721,46639.0,46638.0,0.11084568]
[1649159660486,0.320721,46639.0,46638.0,0.06084568]
[1649159660687,0.320721,46639.0,46638.0,0.01084568]
[1649159660992,0.00065359,46640.0,46638.0,0.01084568]
[1649159661138,0.00065359,46640.0,46639.0,0.01084568]
[1649159661240,0.32137459,46640.0,46639.0,0.01084568]
[1649159661339,0.00065359,46640.0,46636.0,0.1]
[1649159661738,0.320721,46639.0,46636.0,0.1]
[1649159661839,0.00065359,46640.0,46636.0,0.1]
[1649159662089,0.00117982,46640.0,46636.0,0.1]
[1649159663093,0.00065359,46640.0,46636.0,0.1]
[1649159663191,0.320721,46639.0,46636.0,0.1]
[1649159663292,0.00065359,46640.0,46636.0,0.1]
[1649159663293,0.00117982,46640.0,46636.0,0.1]
[1649159663441,0.320721,46639.0,46636.0,0.1]
[1649159663594,0.320721,46639.0,46636.0,0.05]
[1649159663692,0.320721,46639.0,46635.0,0.05]
[1649159663790,0.00117982,46640.0,46635.0,0.05]
[1649159663892,0.320721,46639.0,46635.0,0.05]
[1649159663991,0.22731728,46638.0,46635.0,0.05]
[1649159664093,0.22731728,46638.0,46637.0,0.01084592]
[1649159664392,0.00052624,46639.0,46637.0,0.01084592]
[1649159664493,0.00052624,46639.0,46635.0,0.05]
[1649159664595,0.00052624,46639.0,46635.0,0.103602]
[1649159664793,0.00052624,46639.0,46636.0,0.05]
[1649159665195,0.00052624,46639.0,46636.0,0.103597]
[1649159665394,0.00065359,46640.0,46636.0,0.103597]
[1649159665498,0.60694611,46639.0,46636.0,0.103597]
[1649159665648,0.28622511,46639.0,46636.0,0.05]
[1649159665793,0.320721,46637.0,46636.0,0.05]
[1649159665895,0.28622511,46639.0,46636.0,0.06084603]
[1649159665993,0.00117982,46640.0,46636.0,0.05]
[1649159666544,0.00117982,46640.0,46636.0,0.103597]
[1649159666646,0.00065359,46640.0,46636.0,0.103597]
[1649159666845,0.00117982,46640.0,46636.0,0.103597]
[1649159667044,0.00117982,46640.0,46639.0,0.22476579]
[1649159667142,0.00117982,46640.0,46636.0,0.103597]
[1649159667444,0.320721,46639.0,46636.0,0.05]
[1649159667648,0.00117982,46640.0,46636.0,0.05]
[1649159667649,0.320721,46638.0,46636.0,0.05]
[1649159667742,0.320721,46639.0,46636.0,0.05]
[1649159667944,0.320721,46639.0,46634.0,0.1]
[1649159668045,0.00117982,46640.0,46634.0,0.05]
[1649159668344,0.00117982,46640.0,46633.0,0.01072]
[1649159668999,0.00065359,46640.0,46633.0,0.01072]
[1649159669296,0.27894033,46639.0,46633.0,0.01072]
[1649159670187,0.27841409,46639.0,46633.0,0.01072]
[1649159670287,0.00065359,46640.0,46633.0,0.01072]
[1649159670488,0.00052624,46638.0,46633.0,0.01072]
[1649159670836,0.00052624,46638.0,46632.0,0.18370323]
[1649159671444,0.28977992,46639.0,46632.0,0.18370323]
[1649159671640,0.00065359,46640.0,46632.0,0.18370323]
[1649159671743,0.00052625,46637.0,46632.0,0.18370323]
[1649159672640,0.00065359,46640.0,46632.0,0.18370323]
[1649159672841,0.00052625,46637.0,46632.0,0.18370323]
[1649159673843,0.00065359,46640.0,46632.0,0.153606]
[1649159673844,0.28073618,46634.0,46632.0,0.153606]
[1649159674249,0.28073618,46634.0,46631.0,0.0023407]
[1649159674250,0.320721,46633.0,46631.0,0.0023407]
[1649159674445,0.620721,46633.0,46625.0,0.01072]
[1649159674544,0.3,46632.0,46625.0,0.01072]
[1649159674644,0.3,46632.0,46624.0,0.00234749]
[1649159674944,0.3,46632.0,46624.0,0.25645294]
[1649159674945,0.27635124,46626.0,46624.0,0.25645294]
[1649159675046,0.27635124,46626.0,46625.0,0.02156801]
[1649159675148,0.27635124,46626.0,46625.0,0.01084801]
[1649159675798,0.31072,46635.0,46625.0,0.06446301]
[1649159675998,0.31072,46635.0,46625.0,0.053615]
[1649159676301,0.3,46635.0,46625.0,0.053615]
[1649159676598,0.31072,46635.0,46625.0,0.053615]
[1649159676899,0.31072,46635.0,46627.0,0.053613]
[1649159677042,0.31420434,46631.0,46628.0,0.053608]
[1649159677243,0.31420434,46631.0,46628.0,0.103608]
[1649159677440,0.31420434,46631.0,46629.0,0.05]
[1649159678144,0.3,46635.0,46629.0,0.05]
[1649159678242,0.17678917,46636.0,46629.0,0.05]
[1649159678343,0.17678917,46636.0,46629.0,0.157211]
[1649159678442,0.00052624,46636.0,46629.0,0.157211]
[1649159678646,0.17626293,46637.0,46629.0,0.157211]
[1649159678847,0.00052626,46636.0,46631.0,0.053604]
[1649159678945,0.00052626,46636.0,46633.0,0.053601]
[1649159679197,0.30109351,46635.0,46633.0,0.053601]
[1649159679300,0.30109351,46635.0,46633.0,0.40902316]
[1649159679403,0.30109351,46635.0,46633.0,0.103601]
[1649159679597,0.320721,46634.0,46633.0,0.103601]
[1649159679699,0.30109351,46635.0,46633.0,0.103601]
[1649159679901,0.320721,46634.0,46633.0,0.103601]
[1649159680002,0.30109351,46635.0,46633.0,0.103601]
[1649159680100,0.320721,46634.0,46633.0,0.103601]
[1649159680200,0.30109351,46635.0,46633.0,0.103601]
[1649159680839,0.320721,46634.0,46633.0,0.103601]
[1649159680940,0.30109351,46635.0,46633.0,0.103601]
[1649159681340,0.320721,46634.0,46633.0,0.103601]
[1649159681592,0.30109351,46635.0,46633.0,0.103601]
[1649159682894,0.30109351,46635.0,46633.0,0.10353912]
[1649159685995,0.320721,46634.0,46633.0,0.10353912]
[1649159686949,0.320721,46634.0,46633.0,0.05]
[1649159687900,0.30109351,46635.0,46633.0,0.05]
[1649159688000,0.320721,46634.0,46633.0,0.05]
[1649159688249,0.17596413,46637.0,46632.0,0.02761748]
[1649159688348,0.320721,46636.0,46633.0,0.05]
[1649159688448,0.32124726,46636.0,46634.0,0.053601]
[1649159688553,0.320721,46635.0,46634.0,0.053601]
[1649159688649,0.00052626,46636.0,46634.0,0.1072]
[1649159688948,0.320721,46635.0,46634.0,0.053599]
[1649159689248,0.00052626,46636.0,46634.0,0.053599]
[1649159689349,0.320721,46635.0,46634.0,0.053599]
[1649159689849,0.320721,46636.0,46634.0,0.053599]
[1649159690252,0.00052625,46637.0,46634.0,0.053599]
[1649159690352,0.320721,46636.0,46634.0,0.053599]
[1649159690452,0.00052625,46637.0,46634.0,0.053599]
[1649159690557,0.320721,46636.0,46634.0,0.053599]
[1649159690653,0.320721,46636.0,46634.0,0.107196]
[1649159690754,0.320721,46635.0,46634.0,0.107196]
[1649159690855,0.17596413,46639.0,46634.0,0.107196]
[1649159690856,0.00052625,46637.0,46634.0,0.107196]
[1649159690954,0.320721,46636.0,46634.0,0.107196]
[1649159691102,0.00052625,46637.0,46634.0,0.107196]
[1649159691202,0.00052625,46637.0,46634.0,0.053599]
[1649159691302,0.320721,46636.0,46634.0,0.053599]
[1649159691857,0.320721,46636.0,46633.0,0.264397]
[1649159692441,0.320721,46636.0,46633.0,0.157196]
[1649159692893,0.320721,46636.0,46633.0,0.05]
[1649159692993,0.320721,46636.0,46631.0,0.05]
[1649159693095,0.320721,46637.0,46630.0,0.35995836]
[1649159693293,0.320721,46636.0,46630.0,0.35995836]
[1649159693392,0.00052625,46637.0,46630.0,0.35995836]
[1649159693493,0.320721,46636.0,46630.0,0.35995836]
[1649159693792,0.00052625,46637.0,46630.0,0.35995836]
[1649159693992,0.320721,46636.0,46630.0,0.35995836]
[1649159694094,0.00052625,46637.0,46630.0,0.35995836]
[1649159694198,0.17596413,46638.0,46630.0,0.35995836]
[1649159694495,0.00052626,46636.0,46630.0,0.35995836]
[1649159695348,0.26245939,46634.0,46630.0,0.35995836]
[1649159695446,0.26245939,46634.0,46630.0,0.1300944]
[1649159697258,0.00052625,46636.0,46630.0,0.1300944]
[1649159697458,0.00052625,46636.0,46630.0,0.30635236]
[1649159697658,0.00052625,46636.0,46631.0,0.17625796]
[1649159697858,0.17596413,46638.0,46631.0,0.17625796]
[1649159697959,0.320721,46637.0,46631.0,0.17625796]
[1649159698058,0.00052626,46636.0,46631.0,0.17625796]
[1649159699059,0.42092983,46639.0,46631.0,0.17625796]
[1649159699159,0.320721,46638.0,46631.0,0.17625796]
[1649159699263,0.00052626,46636.0,46631.0,0.17625796]
[1649159699603,0.00052626,46636.0,46632.0,0.053603]
[1649159700207,0.42092983,46639.0,46632.0,0.053603]
[1649159700308,0.320721,46638.0,46632.0,0.053603]
[1649159700457,0.00052625,46636.0,46632.0,0.053603]
[1649159701463,0.43164983,46639.0,46632.0,0.053603]
[1649159701610,0.17596413,46638.0,46632.0,0.353603]
[1649159701709,0.00052625,46636.0,46632.0,0.053603]
[1649159702662,0.17596413,46638.0,46632.0,0.053603]
[1649159702765,0.320721,46637.0,46631.0,0.27625796]
[1649159702863,0.00052625,46636.0,46631.0,0.1]
[1649159702963,0.320721,46635.0,46631.0,0.05]
[1649159703066,0.320721,46635.0,46630.0,0.0800944]
[1649159703067,0.320721,46634.0,46632.0,0.05]
[1649159703270,0.17649038,46636.0,46630.0,0.0800944]
[1649159703272,0.320721,46635.0,46630.0,0.0800944]
[1649159703368,0.17649038,46636.0,46630.0,0.0800944]
[1649159703669,0.17649038,46636.0,46631.0,0.28073115]
[1649159703768,0.17649038,46636.0,46631.0,0.33073115]
[1649159703868,0.17596413,46636.0,46631.0,0.33073115]
[1649159703968,0.320721,46635.0,46631.0,0.33073115]
[1649159704071,0.00052626,46636.0,46631.0,0.33073115]
[1649159704169,0.320721,46635.0,46631.0,0.05]
[1649159704269,0.00052626,46636.0,46630.0,0.1300944]
[1649159704871,0.320721,46635.0,46630.0,0.1300944]
[1649159705176,0.17596413,46636.0,46630.0,0.43662991]
[1649159705274,0.320721,46635.0,46630.0,0.43662991]
[1649159705573,0.320721,46635.0,46630.0,0.61288787]
[1649159705673,0.320721,46635.0,46630.0,0.43662991]
[1649159705774,0.320721,46635.0,46630.0,0.1300944]
[1649159705974,0.17649039,46636.0,46630.0,0.1300944]
[1649159706074,0.24257246,46632.0,46630.0,0.1300944]
[1649159710397,0.24257246,46632.0,46630.0,0.30635236]
[1649159710746,0.17649038,46636.0,46630.0,0.30635236]
[1649159710847,0.00052625,46636.0,46630.0,0.30635236]
[1649159711047,0.17596413,46637.0,46630.0,0.30635236]
[1649159711503,0.00052626,46636.0,46631.0,0.17625796]
[1649159711900,0.00052626,46636.0,46631.0,0.22985896]
[1649159712199,0.17596413,46637.0,46631.0,0.22985896]
[1649159712450,0.00052626,46636.0,46631.0,0.22985896]
[1649159712652,0.00052626,46636.0,46631.0,0.28345996]
[1649159712753,0.00052626,46636.0,46632.0,0.05]
[1649159713451,0.17602165,46637.0,46632.0,0.05]
[1649159713652,0.00052625,46636.0,46632.0,0.05]
[1649159713752,0.320721,46635.0,46632.0,0.05]
[1649159713851,0.00052625,46636.0,46632.0,0.05]
[1649159714699,0.17602165,46637.0,46632.0,0.05]
[1649159714844,0.32124725,46636.0,46632.0,0.05]
[1649159714943,0.00052625,46636.0,46632.0,0.05]
[1649159715845,0.17602165,46637.0,46632.0,0.05]
[1649159715946,0.17602165,46637.0,46632.0,0.22630658]
[1649159716196,0.00052625,46636.0,46632.0,0.1]
[1649159716299,0.00052625,46636.0,46632.0,0.05]
[1649159716597,0.00052625,46636.0,46631.0,0.27630658]
[1649159716998,0.320721,46635.0,46631.0,0.27630658]
[1649159717103,0.28181754,46633.0,46631.0,0.27630658]
[1649159717200,0.320721,46635.0,46631.0,0.1]
[1649159717302,0.320721,46635.0,46630.0,0.22630658]
[1649159717400,0.320721,46635.0,46632.0,0.05]
[1649159717500,0.320721,46635.0,46630.0,0.22630658]
[1649159718372,0.320721,46635.0,46630.0,0.22631795]
[1649159718470,0.320721,46635.0,46630.0,0.05]
[1649159718571,0.320721,46635.0,46630.0,0.22631795]
[1649159718672,0.75920737,46635.0,46630.0,0.22632171]
[1649159718771,0.75920737,46635.0,46630.0,0.27632171]
[1649159718971,0.49682762,46635.0,46630.0,0.1]
[1649159719072,0.320721,46635.0,46631.0,0.17632169]
[1649159719172,0.320721,46635.0,46630.0,0.1]
[1649159719173,0.49682625,46635.0,46630.0,0.1]
[1649159719271,0.49682735,46635.0,46630.0,0.1]
[1649159719374,0.49682735,46635.0,46631.0,0.17632168]
[1649159719472,0.320721,46635.0,46631.0,0.22632236]
[1649159719573,0.4968283,46635.0,46628.0,0.27040296]
[1649159719679,0.17610738,46635.0,46631.0,0.17632237]
[1649159719773,0.00052626,46636.0,46631.0,0.27632271]
[1649159719874,0.00052626,46636.0,46631.0,0.13009485]
[1649159719974,0.49682775,46635.0,46631.0,0.13009485]
[1649159720123,0.17610662,46635.0,46631.0,0.13009485]
[1649159720225,0.320721,46635.0,46631.0,0.13009485]
[1649159720324,0.17610689,46635.0,46631.0,0.30641678]
[1649159720426,0.49682871,46635.0,46631.0,0.13009485]
[1649159720580,0.17610804,46635.0,46631.0,0.30641761]
[1649159720675,0.320721,46634.0,46631.0,0.13009485]
[1649159720876,0.17611815,46635.0,46631.0,0.30642723]
[1649159720975,0.29884971,46634.0,46631.0,0.3064269]
[1649159721076,0.29884971,46634.0,46631.0,0.13009485]
[1649159721176,0.00052626,46636.0,46631.0,0.13009485]
[1649159721276,0.320721,46634.0,46631.0,0.30642684]
[1649159721377,0.17611804,46635.0,46631.0,0.30642684]
[1649159721478,0.00052626,46636.0,46631.0,0.13009485]
[1649159721575,0.320721,46635.0,46631.0,0.30642729]
[1649159721675,0.320721,46634.0,46631.0,0.30642729]
[1649159721776,0.1766368,46636.0,46631.0,0.13009485]
[1649159721990,0.320721,46634.0,46631.0,0.3064262]
[1649159722092,0.320721,46637.0,46631.0,0.08009485]
[1649159722196,0.320721,46635.0,46631.0,0.08009485]
[1649159722292,0.320721,46635.0,46631.0,0.03009485]
[1649159722392,0.49682772,46635.0,46631.0,0.2064266]
[1649159722492,0.29332913,46636.0,46631.0,0.2064266]
[1649159722593,0.17610308,46635.0,46631.0,0.20642942]
[1649159722692,0.49682373,46635.0,46631.0,0.2064291]
[1649159722792,0.29332913,46636.0,46631.0,0.03009485]
[1649159722893,0.320721,46635.0,46631.0,0.03009485]
[1649159722993,0.17610394,46635.0,46631.0,0.20643061]
[1649159723094,0.1761038,46635.0,46631.0,0.20643066]
[1649159723192,0.29280287,46636.0,46631.0,0.03009485]
[1649159723294,0.320721,46635.0,46631.0,0.03009485]
[1649159723393,0.49682468,46635.0,46631.0,0.2064315]
[1649159723494,0.29332913,46636.0,46631.0,0.03009485]
[1649159723594,0.49682528,46635.0,46631.0,0.03009485]
[1649159723694,0.29332913,46636.0,46631.0,0.20643086]
[1649159723795,0.49682488,46635.0,46631.0,0.20643072]
[1649159723896,0.29332913,46636.0,46631.0,0.03009485]
[1649159723995,0.49682485,46635.0,46631.0,0.03009485]
[1649159724095,0.17610196,46634.0,46631.0,0.03009485]
[1649159724197,0.320721,46633.0,46631.0,0.20643453]
[1649159724298,0.29280287,46636.0,46634.0,0.35517105]
[1649159724446,0.49682366,46635.0,46634.0,0.35517105]
[1649159724700,0.49682366,46635.0,46634.0,0.40517105]
[1649159725897,0.320721,46635.0,46634.0,0.40517105]
[1649159726000,0.49682327,46635.0,46634.0,0.40517105]
[1649159730101,0.320721,46635.0,46634.0,0.40517105]
[1649159730200,0.49682327,46635.0,46634.0,0.40517105]
[1649159730549,0.320721,46635.0,46634.0,0.40517105]
[1649159731650,0.49682327,46635.0,46634.0,0.40517105]
[1649159732153,0.49682327,46635.0,46634.0,0.35517105]
[1649159734217,0.49682327,46635.0,46634.0,0.40517105]
[1649159735018,0.320721,46635.0,46634.0,0.40517105]
[1649159735321,0.17610227,46636.0,46634.0,0.40517105]
[1649159735419,0.320721,46635.0,46634.0,0.40517105]
[1649159735519,0.17610227,46636.0,46634.0,0.40517105]
[1649159735618,0.320721,46635.0,46634.0,0.40517105]
[1649159735720,0.17610227,46636.0,46634.0,0.40517105]
[1649159736070,0.320721,46635.0,46634.0,0.40517105]
[1649159737446,0.49682327,46635.0,46634.0,0.40517105]
[1649159738296,0.320721,46635.0,46634.0,0.40517105]
[1649159738998,0.49682327,46635.0,46634.0,0.40517105]
[1649159739650,0.320721,46635.0,46634.0,0.40517105]
[1649159742806,0.17610227,46636.0,46634.0,0.40517105]
[1649159742906,0.320721,46635.0,46634.0,0.40517105]
[1649159743255,0.17610227,46636.0,46634.0,0.40517105]
[1649159743356,0.320721,46635.0,46634.0,0.40517105]
[1649159743661,0.17610227,46636.0,46634.0,0.40517105]
[1649159743759,0.320721,46635.0,46634.0,0.40517105]
[1649159744107,0.17610227,46636.0,46634.0,0.40517105]
[1649159744210,0.320721,46635.0,46634.0,0.40517105]
[1649159744359,0.17610227,46636.0,46634.0,0.40517105]
[1649159744517,0.320721,46635.0,46634.0,0.40517105]
[1649159744617,0.17610227,46636.0,46634.0,0.40517105]
[1649159744720,0.320721,46635.0,46634.0,0.40517105]
[1649159744921,0.17610227,46636.0,46634.0,0.40517105]
[1649159745120,0.17610227,46635.0,46634.0,0.40517105]
[1649159745219,0.320721,46635.0,46634.0,0.40517105]
[1649159746275,0.49682327,46635.0,46634.0,0.40517105]
[1649159746575,0.320721,46635.0,46634.0,0.40517105]
[1649159749717,0.320721,46635.0,46634.0,0.34717105]
[1649159749912,0.370721,46635.0,46634.0,0.34717105]
[1649159750012,0.05,46635.0,46634.0,0.34717105]
[1649159750313,0.052,46636.0,46634.0,0.34717105]
[1649159750413,0.320721,46635.0,46634.0,0.34717105]
[1649159750613,0.002,46636.0,46634.0,0.34717105]
[1649159750714,0.320721,46635.0,46634.0,0.34717105]
[1649159750819,0.052,46636.0,46634.0,0.34717105]
[1649159751116,0.05,46635.0,46634.0,0.34717105]
[1649159751215,0.102,46636.0,46634.0,0.34717105]
[1649159752016,0.052,46636.0,46634.0,0.34717105]
[1649159752218,0.002,46636.0,46634.0,0.34717105]
[1649159752315,0.052,46636.0,46634.0,0.34717105]
[1649159752517,0.052,46636.0,46634.0,0.52350867]
[1649159752721,0.002,46636.0,46634.0,0.52350867]
[1649159753169,0.002,46636.0,46634.0,0.34717105]
[1649159753471,0.002,46636.0,46634.0,0.52350867]
[1649159753569,0.002,46636.0,46634.0,0.34717105]
[1649159754323,0.32213344,46638.0,46637.0,0.00023131]
[1649159754424,0.81894877,46638.0,46637.0,0.00023131]
[1649159755174,0.76894877,46638.0,46637.0,0.00023131]
[1649159755277,0.44822777,46638.0,46637.0,0.00023131]
[1649159756149,0.49822777,46638.0,46637.0,0.00023131]
[1649159757304,0.32213344,46638.0,46637.0,0.00023131]
[1649159758103,0.27213344,46638.0,46637.0,0.00023131]
[1649159758806,0.22213344,46638.0,46637.0,0.00023131]
[1649159760056,0.22213344,46638.0,46637.0,0.17654473]
[1649159760607,0.22213344,46638.0,46634.0,0.56756283]
[1649159760608,0.07245241,46636.0,46634.0,0.56756283]
[1649159760707,0.07245241,46636.0,46635.0,0.08822206]
[1649159762207,0.07245241,46636.0,46635.0,0.01084557]
[1649159762405,0.07245241,46636.0,46635.0,0.31084557]
[1649159762609,0.07245241,46636.0,46635.0,0.01084557]
[1649159762706,0.07245241,46636.0,46635.0,0.31084557]
[1649159764560,0.07245241,46636.0,46635.0,0.52226557]
[1649159764960,0.07245241,46636.0,46635.0,0.31084557]
[1649159766415,0.07245241,46636.0,46635.0,0.52226557]
[1649159766512,0.07245241,46636.0,46635.0,0.31084557]
[1649159766711,0.07245241,46636.0,46635.0,0.52226557]
[1649159766813,0.07245241,46636.0,46635.0,0.31084557]
[1649159768508,0.07245241,46636.0,46635.0,0.3]
[1649159768609,0.07245241,46636.0,46635.0,0.31084522]
[1649159768810,0.07245241,46636.0,46635.0,0.531237]
[1649159768909,0.07245241,46636.0,46635.0,0.742657]
[1649159769008,0.07245241,46636.0,46635.0,0.531237]
[1649159769358,0.07245241,46636.0,46635.0,0.31084522]
[1649159769559,0.07245241,46636.0,46635.0,0.52226522]
[1649159769709,0.22265985,46638.0,46636.0,0.0047937]
[1649159769814,0.22265985,46638.0,46636.0,0.22509409]
[1649159769910,0.22213344,46638.0,46637.0,0.3108458]
[1649159771864,0.22213344,46638.0,46637.0,0.5222548]
[1649159772265,0.22213344,46638.0,46637.0,0.69848646]
[1649159772367,0.22213344,46638.0,46637.0,0.3108458]
[1649159772618,0.22213344,46638.0,46637.0,0.5222548]
[1649159772917,0.22213344,46638.0,46637.0,0.3108458]
[1649159773017,0.22213344,46638.0,46637.0,0.5222548]
[1649159773318,0.22213344,46638.0,46637.0,0.74255519]
[1649159773419,0.22213344,46638.0,46637.0,0.511409]
[1649159773521,0.22213344,46638.0,46637.0,0.63184915]
[1649159773719,0.22213344,46638.0,46637.0,0.52225213]
[1649159773921,0.22213344,46638.0,46637.0,0.93915558]
[1649159774021,0.22213344,46638.0,46637.0,2.8202527]
[1649159774323,0.22213344,46638.0,46637.0,2.92025212]
[1649159774759,0.22213344,46638.0,46637.0,3.57485212]
[1649159774859,0.22213344,46638.0,46637.0,3.58557212]
[1649159774959,0.22213344,46638.0,46637.0,4.13609625]
[1649159775259,0.22213344,46638.0,46637.0,3.82774495]
[1649159775360,0.22213344,46638.0,46637.0,4.13594322]
[1649159775662,0.12795577,46638.0,46637.0,3.82768478]